Workbook

Sheet Base
H1: Project / Site Name
H2: PeakFlow Dataset Location | I2: C:\Users\gfrisby\AppData\Local\Wallingford_HydroSolutions\WINFAP\data\NRFAPeakFlow_v10\suitable-for-pooling
AV5: Need to add in warning that it is not in the list.
B10: Pooling Group | T10: UNGAUGED TARGET | AJ10: Return intervals for individual curves
T11: L-CV | AA11: L-SKEW | AI11: yt | AJ11: =C41 -> 2 | AK11: 5 | AL11: 10 | AM11: 20 | AN11: 25 | AO11: 50 | AP11: 100 | AQ11: 200 | AR11: 500 | AS11: 1000 | AX11: Notes and Warnings
B12: Station | C12: Distance | D12: Years of data | E12: QMED AM | F12: L-CV | G12: L-SKEW | H12: Station No | I12: L-CVAdj | J12: L-SKEWadj | K12: k (Shape) | L12: Beta (Scale) | M12: Warnings | T12: bj | U12: cj | V12: (bj+cj)^-1 | W12: wj | X12: t2*wj | Y12: Total weighting | AA12: bj | AB12: cj | AC12: (bj+cj)^-1 | AD12: wj | AE12: t3*wj | AF12: Total weighting | AJ12: =LN(AJ11-1) -> 0 | AK12: =LN(AK11-1) -> 1.386294361 | AL12: 2.197224577 | AM12: 2.944438979 | AN12: =LN(AN11-1) -> 3.17805383 | AO12: 3.891820298 | AP12: 4.59511985 | AQ12: 5.293304825 | AR12: 6.212606096 | AS12: 6.906754779 | AU12: SPRHOST | AV12: No yrs in record | AW12: No flood yrs > Qmed/2 | AX12: Adjustment applied | AY12: Not present in NRFA Peak Flows list | AZ12: Present | BA12: L-Skew | BB12: No non flood years | BC12: Many non flood years
B13: 27051 (Crimple @ Burn Bridge) | C13: 0.988 | D13: 48 | E13: 4.544 | F13: 0.219 | G13: 0.146 | H13: =IFERROR(VALUE(LEFT(B13,FIND("(",B13)-1)),"-") -> 27051 | I13: =IFERROR(IF(VLOOKUP(H13,INDIRECT("CD3!$A$2:$V$1048576"),21,FALSE)=0,F13,VLOOKUP(H13,INDIRECT("CD3!$A$2:$V$1048576"),21,FALSE)),"-") -> 0.219 | J13: =IFERROR(IF(VLOOKUP(H13,INDIRECT("CD3!$A$2:$V$1048576"),22,FALSE)=0,G13,VLOOKUP(H13,INDIRECT("CD3!$A$2:$V$1048576"),22,FALSE)),"-") -> 0.146 | K13: =IFERROR(-1*J13,"-") -> -0.146 | L13: =IFERROR((K13*I13*SIN(PI()*K13))/(K13*PI()*(I13+K13)-I13*SIN(PI()*K13)),"-") -> 0.2230078452 | M13: =AX13&AZ13&BA13& BB13 & BC13 ->  | T13: =IF(C13="","-",(0.0047*(C13^0.5)+0.0023/2)) -> 0.005821714889 | U13: =IF(D13="","-",0.02609/(D13-1)) -> 0.000555106383 | V13: =IFERROR((U13+T13)^-1,"-") -> 156.8179438 | W13: =IFERROR(V13/V$36,"-") -> 0.08473267307 | X13: =IFERROR(W13*I13,"-") -> 0.0185564554 | Y13: =IFERROR(X13/X$37,"-") -> 0.06910036009 | AA13: =IF(C13="","-",0.0219*(1-(EXP(C13/-0.236)))) -> 0.02156711362 | AB13: =IF(D13="","-",0.2743/(D13-2)) -> 0.005963043478 | AC13: =IFERROR((AB13+AA13)^-1,"-") -> 36.32380289 | AD13: =IFERROR(AC13/AC$36,"-") -> 0.07530461943 | AE13: =IFERROR(AD13*J13,"-") -> 0.01099447444 | AF13: =IFERROR(AE13/AE$37,"-") -> 0.04540147037 | AI13: =IF(B13="","-",B13) -> 27051 (Crimple @ Burn Bridge) | AJ13: =IFERROR(1+(($L13/$K13)*(1-((AJ$11-1)^(-1*$K13)))),"-") -> 1 | AK13: 1.342662846 | AL13: 1.577716677 | AM13: 1.820371782 | AN13: 1.901832094 | AO13: 2.16864849 | AP13: 2.460201104 | AQ13: 2.780810536 | AR13: 3.256016136 | AS13: 3.659557548 | AU13: =IFERROR(INDEX('CD3'!B$2:B$100000,(MATCH(H13,'CD3'!A$2:A$100000,0))),"-") -> 40.77 | AV13: =IFERROR(IF(VLOOKUP(H13,INDIRECT("CD3!$A$2:$V$1048576"),21,FALSE)=0,"-",VLOOKUP(H13,INDIRECT("CD3!$A$2:$V$1048576"),5,FALSE)),"-") -> - | AW13: =IFERROR(IF(VLOOKUP(H13,INDIRECT("CD3!$A$2:$V$1048576"),21,FALSE)=0,"-",VLOOKUP(H13,INDIRECT("CD3!$A$2:$V$1048576"),6,FALSE)),"-") -> - | AX13: =IF(AU13<=20,"SPRHOST <=20.","") ->  | AY13: =IF(H13<>"-",IFERROR(MATCH(H13,'CD3'!A:A,0),"Not present in current NRFA dataset"),"") -> 150 | AZ13: =IF(AND(ISNUMBER(AY13),AY13<>""),"",AY13) ->  | BA13: =IF(J13<0, " Adjusted L-Skew is negative, consider removing station.", "") ->  | BB13: =IF(AND(AV13="-",AU13<=20)," Zero non-flood yrs, permeable adjustment not applied.","") ->  | BC13: =IF(ISNUMBER(AV13),IF((AV13-AW13)/AV13>0.15," Non-Flood Yrs over 15% of record, consider removing station.",""),"") -> 
B14: 26016 (Gypsey Race @ Kirby Grindalythe) | C14: 1.25 | D14: 23 | E14: 0.101 | F14: 0.312 | G14: 0.258 | H14: 26016 | I14: 0.2834180532 | J14: 0.3134639978 | K14: -0.3134639978 | L14: 0.2785587756 | M14: SPRHOST <=20. | T14: 0.006404759747 | U14: 0.001185909091 | V14: 131.7406965 | W14: 0.07118280662 | X14: 0.02017449247 | Y14: 0.07512559185 | AA14: 0.0217903129 | AB14: 0.01306190476 | AC14: 28.69257875 | AD14: 0.05948396234 | AE14: 0.01864608064 | AF14: 0.07699863077 | AI14: 26016 (Gypsey Race @ Kirby Grindalythe) | AJ14: 1 | AK14: 1.483666624 | AL14: 1.880850283 | AM14: 2.347871183 | AN14: 2.517796936 | AO14: 3.121202826 | AP14: 3.86357899 | AQ14: 4.781567974 | AR14: 6.341331888 | AS14: 7.855703104 | AU14: =IFERROR(INDEX('CD3'!B$2:B$100000,(MATCH(H14,'CD3'!A$2:A$100000,0))),"-") -> 5.67 | AV14: 23 | AW14: 20 | AX14: =IF(AU14<=20,"SPRHOST <=20.","") -> SPRHOST <=20. | AY14: =IF(H14<>"-",IFERROR(MATCH(H14,'CD3'!A:A,0),"Not present in current NRFA dataset"),"") -> 126 | AZ14: =IF(AND(ISNUMBER(AY14),AY14<>""),"",AY14) -> 
B15: 25019 (Leven @ Easby) | C15: 1.313 | D15: 42 | E15: 5.384 | F15: 0.338 | G15: 0.386 | H15: 25019 | I15: 0.338 | J15: 0.386 | K15: -0.386 | L15: 0.3260469898 | T15: 0.006535551968 | U15: 0.0006363414634 | V15: 139.4331929 | W15: 0.07533925555 | X15: 0.02546466838 | Y15: 0.09482510082 | AA15: 0.02181601127 | AB15: 0.0068575 | AC15: 34.8753939 | AD15: 0.07230185321 | AE15: 0.02790851534 | AF15: 0.1152476764 | AI15: 25019 (Leven @ Easby) | AJ15: 1 | AK15: 1.597726429 | AL15: 2.127879936 | AM15: 2.787354408 | AN15: 3.035729472 | AO15: 3.949416966 | AP15: 5.132782081 | AQ15: 6.672355546 | AR15: 9.448399216 | AS15: 12.30388891 | AU15: =IFERROR(INDEX('CD3'!B$2:B$100000,(MATCH(H15,'CD3'!A$2:A$100000,0))),"-") -> 38.58 | AV15: - | AW15: - | AX15: =IF(AU15<=20,"SPRHOST <=20.","") ->  | AY15: =IF(H15<>"-",IFERROR(MATCH(H15,'CD3'!A:A,0),"Not present in current NRFA dataset"),"") -> 119 | AZ15: =IF(AND(ISNUMBER(AY15),AY15<>""),"",AY15) -> 
B16: 45816 (Haddeo @ Upton) | C16: 1.469 | D16: 27 | E16: 3.456 | F16: 0.298 | G16: 0.417 | H16: 45816 | I16: 0.298 | J16: 0.417 | K16: -0.417 | L16: 0.2705260634 | T16: 0.00684650858 | U16: 0.001003461538 | V16: 127.3890199 | W16: 0.06883148647 | X16: 0.02051178297 | Y16: 0.07638159113 | AA16: 0.02185663444 | AB16: 0.010972 | AC16: 30.46121221 | AD16: 0.06315060125 | AE16: 0.02633380072 | AF16: 0.1087449227 | AI16: 45816 (Haddeo @ Upton) | AJ16: 1 | AK16: 1.507720326 | AL16: 1.973037354 | AM16: 2.565948303 | AN16: 2.792556412 | AO16: 3.638900739 | AP16: 4.759371626 | AQ16: 6.249120944 | AR16: 9.004541 | AS16: 11.90950066 | AU16: =IFERROR(INDEX('CD3'!B$2:B$100000,(MATCH(H16,'CD3'!A$2:A$100000,0))),"-") -> 31.27 | AV16: - | AW16: - | AY16: =IF(H16<>"-",IFERROR(MATCH(H16,'CD3'!A:A,0),"Not present in current NRFA dataset"),"") -> 304
B17: 49005 (Bolingey Stream @ Bolingey Cocks Bridge) | C17: 1.557 | D17: 10 | E17: 5.972 | F17: 0.256 | G17: 0.136 | H17: 49005 | I17: 0.256 | J17: 0.136 | K17: -0.136 | L17: 0.2632196602 | T17: 0.007014650885 | U17: 0.002898888889 | V17: 100.8721428 | W17: 0.05450375187 | X17: 0.01395296048 | Y17: 0.05195790751 | AA17: 0.0218701321 | AB17: 0.0342875 | AC17: 17.80701861 | AD17: 0.03691658507 | AE17: 0.00502065557 | AF17: 0.02073270045 | AI17: 49005 (Bolingey Stream @ Bolingey Cocks Bridge) | AJ17: 1 | AK17: 1.401565962 | AL17: 1.67405589 | AM17: 1.953177941 | AN17: 2.04642747 | AO17: 2.350398829 | AP17: 2.680206483 | AQ17: 3.040351296 | AR17: 3.569834089 | AS17: 4.015873647 | AU17: =IFERROR(INDEX('CD3'!B$2:B$100000,(MATCH(H17,'CD3'!A$2:A$100000,0))),"-") -> 31.92 | AV17: - | AW17: - | AY17: =IF(H17<>"-",IFERROR(MATCH(H17,'CD3'!A:A,0),"Not present in current NRFA dataset"),"") -> 335
B18: 28033 (Dove @ Hollinsclough) | C18: 1.653 | D18: 45 | E18: 4.15 | F18: 0.225 | G18: 0.373 | H18: 28033 | I18: 0.225 | J18: 0.373 | K18: -0.373 | L18: 0.2031043779 | T18: 0.007192745237 | U18: 0.0005929545455 | V18: 128.4406062 | W18: 0.06939968495 | X18: 0.01561492911 | Y18: 0.05814673121 | AA18: 0.02188011423 | AB18: 0.006379069767 | AC18: 35.38672597 | AD18: 0.07336192027 | AE18: 0.02736399626 | AF18: 0.1129990954 | AI18: 28033 (Dove @ Hollinsclough) | AJ18: 1 | AK18: 1.368711424 | AL18: 1.691269212 | AM18: 2.08848184 | AN18: 2.237162359 | AO18: 2.780648244 | AP18: 3.478096091 | AQ18: 4.377259031 | AR18: 5.981370691 | AS18: 7.614418596 | AU18: =IFERROR(INDEX('CD3'!B$2:B$100000,(MATCH(H18,'CD3'!A$2:A$100000,0))),"-") -> 42.5 | AV18: - | AW18: - | AY18: =IF(H18<>"-",IFERROR(MATCH(H18,'CD3'!A:A,0),"Not present in current NRFA dataset"),"") -> 182
B19: 27073 (Brompton Beck @ Snainton Ings) | C19: 1.728 | D19: 40 | E19: 0.816 | F19: 0.214 | G19: 0.02 | H19: 27073 | I19: 0.1992058351 | J19: 0.05468406337 | K19: -0.05468406337 | L19: 0.2018387975 | M19: SPRHOST <=20. | T19: 0.007328310449 | U19: 0.000668974359 | V19: 125.0424393 | W19: 0.06756357001 | X19: 0.01345905739 | Y19: 0.05011871565 | AA19: 0.02188552811 | AB19: 0.007218421053 | AC19: 34.35959822 | AD19: 0.07123253244 | AE19: 0.003895284318 | AF19: 0.01608550154 | AI19: 27073 (Brompton Beck @ Snainton Ings) | AJ19: 1 | AK19: 1.290687019 | AL19: 1.471228163 | AM19: 1.644822177 | AN19: 1.700567644 | AO19: 1.875366881 | AP19: 2.0544068 | AQ19: 2.23908752 | AR19: 2.49326385 | AS19: 2.693835244 | AU19: =IFERROR(INDEX('CD3'!B$2:B$100000,(MATCH(H19,'CD3'!A$2:A$100000,0))),"-") -> 17.77 | AV19: 40 | AW19: 38 | AX19: SPRHOST <=20. | AY19: =IF(H19<>"-",IFERROR(MATCH(H19,'CD3'!A:A,0),"Not present in current NRFA dataset"),"") -> 156
B20: 27010 (Hodge Beck @ Bransdale Weir) | C20: 1.734 | D20: 41 | E20: 9.42 | F20: 0.224 | G20: 0.293 | H20: 27010 | I20: 0.224 | J20: 0.293 | K20: -0.293 | L20: 0.216035928 | T20: 0.007339027387 | U20: 0.00065225 | V20: 125.1364396 | W20: 0.06761436074 | X20: 0.0151456168 | Y20: 0.0563991103 | AA20: 0.0218858914 | AB20: 0.007033333333 | AC20: 34.57907358 | AD20: 0.07168753733 | AE20: 0.02100444844 | AF20: 0.08673746515 | AI20: 27010 (Hodge Beck @ Bransdale Weir) | AJ20: 1 | AK20: 1.369457638 | AL20: 1.666302057 | AM20: 2.009837982 | AN20: 2.13361772 | AO20: 2.568816785 | AP20: 3.096543083 | AQ20: 3.739817109 | AR20: 4.814671496 | AS20: 5.841350876 | AU20: =IFERROR(INDEX('CD3'!B$2:B$100000,(MATCH(H20,'CD3'!A$2:A$100000,0))),"-") -> 50.58 | AV20: - | AW20: - | AY20: =IF(H20<>"-",IFERROR(MATCH(H20,'CD3'!A:A,0),"Not present in current NRFA dataset"),"") -> 133
B21: 44008 (South Winterbourne @ Winterbourne Steepleton) | C21: 1.8 | D21: 41 | E21: 0.448 | F21: 0.407 | G21: 0.319 | H21: 44008 | I21: 0.3989438225 | J21: 0.303487853 | K21: -0.303487853 | L21: 0.42137854 | M21: SPRHOST <=20. Non-Flood Yrs over 15% of record, consider removing station. | T21: 0.007455711697 | U21: 0.00065225 | V21: 123.3355605 | W21: 0.06664130052 | X21: 0.02658613516 | Y21: 0.09900120867 | AA21: 0.02188933334 | AB21: 0.007033333333 | AC21: 34.57495851 | AD21: 0.07167900618 | AE21: 0.02175370769 | AF21: 0.08983151681 | AI21: 44008 (South Winterbourne @ Winterbourne Steepleton) | AJ21: 1 | AK21: 1.726248382 | AL21: 2.31632829 | AM21: 3.00480842 | AN21: 3.254121799 | AO21: 4.13515648 | AP21: 5.211471372 | AQ21: 6.533124753 | AR21: 8.76050966 | AS21: 10.90593754 | AU21: =IFERROR(INDEX('CD3'!B$2:B$100000,(MATCH(H21,'CD3'!A$2:A$100000,0))),"-") -> 19.53 | AV21: 41 | AW21: 34 | AX21: SPRHOST <=20. | AY21: =IF(H21<>"-",IFERROR(MATCH(H21,'CD3'!A:A,0),"Not present in current NRFA dataset"),"") -> 294 | BC21: Non-Flood Yrs over 15% of record, consider removing station.
B22: 47022 (Tory Brook @ Newnham Park) | C22: 1.813 | D22: 26 | E22: 5.88 | F22: 0.257 | G22: 0.195 | H22: 47022 | I22: 0.257 | J22: 0.195 | K22: -0.195 | L22: 0.2624574967 | T22: 0.007478441356 | U22: 0.0010436 | V22: 117.3427772 | W22: 0.06340324922 | X22: 0.01629463505 | Y22: 0.06067781401 | AA22: 0.02188990502 | AB22: 0.01142916667 | AC22: 30.01284098 | AD22: 0.06222106134 | AE22: 0.01213310696 | AF22: 0.05010343144 | AI22: 47022 (Tory Brook @ Newnham Park) | AJ22: 1 | AK22: 1.417769619 | AL22: 1.719927799 | AM22: 2.04397289 | AN22: 2.155362852 | AO22: 2.528897021 | AP22: 2.95147627 | AQ22: 3.432401377 | AR22: 4.174225884 | AS22: 4.829413112 | AU22: =IFERROR(INDEX('CD3'!B$2:B$100000,(MATCH(H22,'CD3'!A$2:A$100000,0))),"-") -> 44.18 | AV22: - | AW22: - | AY22: =IF(H22<>"-",IFERROR(MATCH(H22,'CD3'!A:A,0),"Not present in current NRFA dataset"),"") -> 321
B23: 36010 (Bumpstead Brook @ Broad Green) | C23: 1.88 | D23: 53 | E23: 7.5 | F23: 0.377 | G23: 0.173 | H23: 36010 | I23: 0.377 | J23: 0.173 | K23: -0.173 | L23: 0.4011141326 | T23: 0.007594315324 | U23: 0.0005017307692 | V23: 123.5170833 | W23: 0.06673938189 | X23: 0.02516074697 | Y23: 0.09369336106 | AA23: 0.02189240006 | AB23: 0.005378431373 | AC23: 36.66921569 | AD23: 0.07602071129 | AE23: 0.01315158305 | AF23: 0.05430920884 | AI23: 36010 (Bumpstead Brook @ Broad Green) | AJ23: =IFERROR(1+(($L23/$K23)*(1-((AJ$11-1)^(-1*$K23)))),"-") -> 1 | AK23: 1.628408329 | AL23: 2.072249622 | AM23: 2.540167567 | AN23: 2.699314557 | AO23: 3.227383005 | AP23: 3.815549878 | AQ23: 4.474686842 | AR23: 5.473352042 | AS23: 6.339973635 | AU23: =IFERROR(INDEX('CD3'!B$2:B$100000,(MATCH(H23,'CD3'!A$2:A$100000,0))),"-") -> 44.57 | AV23: - | AW23: - | AY23: =IF(H23<>"-",IFERROR(MATCH(H23,'CD3'!A:A,0),"Not present in current NRFA dataset"),"") -> 226
B24: 25011 (Langdon Beck @ Langdon) | C24: 1.907 | D24: 34 | E24: 15.878 | F24: 0.228 | G24: 0.316 | H24: 25011 | I24: 0.228 | J24: 0.316 | K24: -0.316 | L24: 0.2168104946 | T24: 0.007640426026 | U24: 0.0007906060606 | V24: 118.6094407 | W24: 0.06408765931 | X24: 0.01461198632 | Y24: 0.05441198196 | AA24: 0.02189322165 | AB24: 0.008571875 | AC24: 32.82444863 | AD24: 0.06804994012 | AE24: 0.02150378108 | AF24: 0.08879944967 | AI24: 25011 (Langdon Beck @ Langdon) | AJ24: 1 | AK24: 1.377162344 | AL24: 1.687723544 | AM24: 2.053610837 | AN24: 2.186900296 | AO24: 2.660794049 | AP24: 3.244878156 | AQ24: 3.968414599 | AR24: 5.20033556 | AS24: 6.398825397 | AU24: =IFERROR(INDEX('CD3'!B$2:B$100000,(MATCH(H24,'CD3'!A$2:A$100000,0))),"-") -> 58.21 | AV24: - | AW24: - | AY24: =IF(H24<>"-",IFERROR(MATCH(H24,'CD3'!A:A,0),"Not present in current NRFA dataset"),"") -> 116
B25: 26014 (Water Forlornes @ Driffield) | C25: 2.191 | D25: 22 | E25: 0.431 | F25: 0.298 | G25: 0.12 | H25: 26014 | I25: 0.2868411811 | J25: 0.09929127762 | K25: -0.09929127762 | L25: 0.2960126636 | M25: SPRHOST <=20. | T25: 0.008106952637 | U25: 0.001242380952 | V25: 106.9594951 | W25: 0.05779290115 | X25: 0.01657738402 | Y25: 0.06173071207 | AA25: 0.02189796531 | AB25: 0.013715 | AC25: 28.07966119 | AD25: 0.05821329353 | AE25: 0.005780072289 | AF25: 0.02386869716 | AI25: 26014 (Water Forlornes @ Driffield) | AJ25: 1 | AK25: 1.439944809 | AL25: 1.726807928 | AM25: 2.012378627 | AN25: 2.106097377 | AO25: 2.406282834 | AP25: 2.72362247 | AQ25: 3.061353031 | AR25: 3.543296239 | AS25: 3.937492974 | AU25: =IFERROR(INDEX('CD3'!B$2:B$100000,(MATCH(H25,'CD3'!A$2:A$100000,0))),"-") -> 6.51 | AV25: 22 | AW25: 19 | AX25: SPRHOST <=20. | AY25: =IF(H25<>"-",IFERROR(MATCH(H25,'CD3'!A:A,0),"Not present in current NRFA dataset"),"") -> 125
B26: 72014 (Conder @ Galgate) | C26: 2.193 | D26: 52 | E26: 16.779 | F26: 0.23 | G26: 0.149 | H26: 72014 | I26: 0.23 | J26: 0.149 | K26: -0.149 | L26: 0.2347830489 | T26: 0.008110127154 | U26: 0.0005115686275 | V26: 115.9864631 | W26: 0.06267039869 | X26: 0.0144141917 | Y26: 0.05367543614 | AA26: 0.02189798248 | AB26: 0.005486 | AC26: 36.51769792 | AD26: 0.07570659251 | AE26: 0.01128028228 | AF26: 0.04658170837 | AI26: 72014 (Conder @ Galgate) | AJ26: 1 | AK26: 1.361532596 | AL26: 1.610337487 | AM26: 1.867788415 | AN26: 1.954341388 | AO26: 2.238246281 | AP26: 2.549131593 | AQ26: 2.891719815 | AR26: 3.400742465 | AS26: 3.834042695 | AU26: =IFERROR(INDEX('CD3'!B$2:B$100000,(MATCH(H26,'CD3'!A$2:A$100000,0))),"-") -> 35.96 | AV26: - | AW26: - | AY26: =IF(H26<>"-",IFERROR(MATCH(H26,'CD3'!A:A,0),"Not present in current NRFA dataset"),"") -> 454
B27: 73015 (Keer @ High Keer Weir) | C27: 2.218 | D27: 29 | E27: 12.421 | F27: 0.202 | G27: 0.238 | H27: 73015 | I27: 0.202 | J27: 0.238 | K27: -0.238 | L27: 0.199000954 | T27: 0.008149687136 | U27: 0.0009317857143 | V27: 110.1142972 | W27: 0.05949751994 | X27: 0.01201849903 | Y27: 0.04475437753 | AA27: 0.02189818527 | AB27: 0.01015925926 | AC27: 31.19400235 | AD27: 0.06466978368 | AE27: 0.01539140852 | AF27: 0.06355852493 | AI27: 73015 (Keer @ High Keer Weir) | AJ27: 1 | AK27: 1.326831451 | AL27: 1.574409697 | AM27: 1.848945551 | AN27: 1.945290369 | AO27: 2.275136845 | AP27: 2.659831633 | AQ27: 3.111031849 | AR27: 3.831834547 | AS27: 4.490740908 | AU27: =IFERROR(INDEX('CD3'!B$2:B$100000,(MATCH(H27,'CD3'!A$2:A$100000,0))),"-") -> 35.79 | AV27: - | AW27: - | AY27: =IF(H27<>"-",IFERROR(MATCH(H27,'CD3'!A:A,0),"Not present in current NRFA dataset"),"") -> 463
H28: - | I28: - | J28: - | K28: - | L28: - | T28: - | U28: - | V28: - | W28: - | X28: - | Y28: - | AA28: - | AB28: - | AC28: - | AD28: - | AE28: - | AF28: - | AI28: - | AJ28: - | AK28: - | AL28: - | AM28: - | AN28: - | AO28: - | AP28: - | AQ28: - | AR28: - | AS28: - | AU28: =IFERROR(INDEX('CD3'!B$2:B$100000,(MATCH(H28,'CD3'!A$2:A$100000,0))),"-") -> - | AV28: - | AW28: - | AY28: =IF(H28<>"-",IFERROR(MATCH(H28,'CD3'!A:A,0),"Not present in current NRFA dataset"),"") -> 
H29: - | I29: - | J29: - | K29: - | L29: - | T29: - | U29: - | V29: =IFERROR((U29+T29)^-1,"-") -> - | W29: - | X29: - | Y29: - | AA29: - | AB29: - | AC29: =IFERROR((AB29+AA29)^-1,"-") -> - | AD29: - | AE29: - | AF29: - | AI29: - | AJ29: - | AK29: - | AL29: - | AM29: - | AN29: - | AO29: - | AP29: - | AQ29: - | AR29: - | AS29: - | AU29: =IFERROR(INDEX('CD3'!B$2:B$100000,(MATCH(H29,'CD3'!A$2:A$100000,0))),"-") -> - | AV29: - | AW29: - | AY29: =IF(H29<>"-",IFERROR(MATCH(H29,'CD3'!A:A,0),"Not present in current NRFA dataset"),"") -> 
H30: - | I30: - | J30: - | K30: - | L30: - | T30: - | U30: - | V30: =IFERROR((U30+T30)^-1,"-") -> - | W30: - | X30: - | Y30: - | AA30: - | AB30: - | AC30: =IFERROR((AB30+AA30)^-1,"-") -> - | AD30: - | AE30: - | AF30: - | AI30: - | AJ30: - | AK30: - | AL30: - | AM30: - | AN30: - | AO30: - | AP30: - | AQ30: - | AR30: - | AS30: - | AU30: =IFERROR(INDEX('CD3'!B$2:B$100000,(MATCH(H30,'CD3'!A$2:A$100000,0))),"-") -> - | AV30: - | AW30: - | AY30: =IF(H30<>"-",IFERROR(MATCH(H30,'CD3'!A:A,0),"Not present in current NRFA dataset"),"") -> 
H31: - | I31: - | J31: - | K31: - | L31: - | T31: - | U31: - | V31: - | W31: - | X31: - | Y31: - | AA31: - | AB31: - | AC31: - | AD31: - | AE31: - | AF31: - | AI31: - | AJ31: - | AK31: - | AL31: - | AM31: - | AN31: - | AO31: - | AP31: - | AQ31: - | AR31: - | AS31: - | AU31: =IFERROR(INDEX('CD3'!B$2:B$100000,(MATCH(H31,'CD3'!A$2:A$100000,0))),"-") -> - | AV31: - | AW31: - | AY31: =IF(H31<>"-",IFERROR(MATCH(H31,'CD3'!A:A,0),"Not present in current NRFA dataset"),"") -> 
H32: - | I32: - | J32: - | K32: - | L32: - | T32: - | U32: - | V32: - | W32: - | X32: - | Y32: - | AA32: - | AB32: - | AC32: - | AD32: - | AE32: - | AF32: - | AI32: - | AJ32: - | AK32: - | AL32: - | AM32: - | AN32: - | AO32: - | AP32: - | AQ32: - | AR32: - | AS32: - | AU32: =IFERROR(INDEX('CD3'!B$2:B$100000,(MATCH(H32,'CD3'!A$2:A$100000,0))),"-") -> - | AV32: - | AW32: - | AY32: =IF(H32<>"-",IFERROR(MATCH(H32,'CD3'!A:A,0),"Not present in current NRFA dataset"),"") -> 
H33: - | I33: - | J33: - | K33: - | L33: - | T33: - | U33: - | V33: - | W33: - | X33: - | Y33: - | AA33: - | AB33: - | AC33: - | AD33: - | AE33: - | AF33: - | AI33: - | AJ33: - | AK33: - | AL33: - | AM33: - | AN33: - | AO33: - | AP33: - | AQ33: - | AR33: - | AS33: - | AU33: =IFERROR(INDEX('CD3'!B$2:B$100000,(MATCH(H33,'CD3'!A$2:A$100000,0))),"-") -> - | AV33: - | AW33: - | AY33: =IF(H33<>"-",IFERROR(MATCH(H33,'CD3'!A:A,0),"Not present in current NRFA dataset"),"") -> 
B36: URBAN | C36: =IF(C37="","",1.567*C37) -> 0.0164535 | U36: sum(bj+cj) | V36: =SUM(V13:V30) -> 1850.737598 | AB36: sum(bj+cj) | AC36: =SUM(AC13:AC30) -> 482.3582294
B37: URBEXT2000 | C37: 0.0105 | W37: sum(t2*wj) | X37: =SUM(X13:X30) -> 0.2685435413 | Y37: L-CV Pooled | AD37: sum(t3*wj) | AE37: =SUM(AE13:AE30) -> 0.2421611976 | AF37: L-SKEW Pooled
T40: Calculation of GLO Fitting parmeters from Pooled L-CV and Pooled L-SKEW (FEH Vol3 Pg 142)
B41: SPECIFY TARGET RETURN PERIODS | C41: 2 | D41: 5 | E41: 10 | F41: 20 | G41: 25 | H41: 50 | I41: 100 | J41: 200 | K41: 500 | L41: 1000 | X41: L-CV Pooled | Y41: L-SKEW Pooled | Z41: k (Shape) | AA41: Beta (Scale)
C42: =1+(($AA42/$Z42)*(1-((AJ$11-1)^(-1*$Z42)))) -> 1 | D42: 1.444641666 | E42: 1.783651659 | F42: 2.161342338 | G42: =1+(($AA42/$Z42)*(1-((AN$11-1)^(-1*$Z42)))) -> 2.294272861 | H42: 2.750702622 | I42: 3.285310194 | J42: 3.914997266 | K42: 4.925903502 | L42: 5.854472037 | T42: Final Pooled Growth Curve | X42: =X44*(0.68654^C36) -> 0.2668869221 | Y42: =(Y44+1)*(1.096017^C36)-1 -> 0.2440364134 | Z42: =-1*Y42 -> -0.2440364134 | AA42: =(Z42*X42*SIN(PI()*Z42))/(Z42*PI()*(X42+Z42)-X42*SIN(PI()*Z42)) -> 0.2695400651
W44: put in values from previous | X44: =X37 -> 0.2685435413 | Y44: =AE37 -> 0.2421611976 | Z44: =-1*Y44 -> -0.2421611976 | AA44: =(Z44*F25*SIN(PI()*Z44))/(Z44*PI()*(X44+Z44)-F25*SIN(PI()*Z44)) -> 0.2683777737 | AB44: permeability changes.

Sheet Guidance

Sheet CD3 (hidden)
A1: Station Number | B1: SPRHOST | C1: QMED | D1: QMED_adj | E1: Number years in record | F1: Number flood years > Qmed/2 | G1: w(total yrs/flood yrs) | H1: L-CV | I1: L-Skew | J1: L-CV(>Qmed/2) | K1: L-Skew(>Qmed/2) | L1: k(Shape) | M1: Beta(Scale) | N1: k | O1: LHS | P1: RHS | Q1: diff | R1: A | S1: B | T1: Beta | U1: L-CVAdj | V1: L-SKEWadj
A2: 2001 | B2: 52.88
A3: 2002 | B3: 54.16
A4: 3002 | B4: 49.93
A5: 3003 | B5: 53.57
A6: 4006 | B6: 52.93
A7: 6012 | B7: 46.36
A8: 7001 | B8: 55.84
A9: 7002 | B9: 51.62
A10: 7003 | B10: 34.65
A11: 7004 | B11: 41.25
A12: 7005 | B12: 50.31
A13: 7010 | B13: 34.12
A14: 7011 | B14: 27.08
A15: 8004 | B15: 43.44
A16: 8005 | B16: 47.64
A17: 8006 | B17: 43.98
A18: 8008 | B18: 53.49
A19: 8009 | B19: 46.63
A20: 8010 | B20: 46.42
A21: 8011 | B21: 41.99
A22: 8013 | B22: 49.14
A23: 9001 | B23: 37.32
A24: 9003 | B24: 36.31
A25: 9004 | B25: 32.61
A26: 9006 | B26: 33
A27: 9010 | B27: 42.57
A28: 10001 | B28: 28.31
A29: 10002 | B29: 33
A30: 10003 | B30: 27.83
A31: 11001 | B31: 31.28
A32: 11002 | B32: 32.44
A33: 11003 | B33: 33.59
A34: 12001 | B34: 40.27
A35: 12002 | B35: 39.69
A36: 12003 | B36: 44.94
A37: 12005 | B37: 43
A38: 12006 | B38: 42.66
A39: 12007 | B39: 50.1
A40: 12008 | B40: 44.79
A41: 13001 | B41: 40.16
A42: 14001 | B42: 29.71
A43: 15003 | B43: 45.36
A44: 15006 | B44: 42.87
A45: 15007 | B45: 44.6
A46: 15008 | B46: 37.21
A47: 15011 | B47: 47.57
A48: 15013 | B48: 42.65
A49: 15016 | B49: 44.79
A50: 15023 | B50: 39.88
A51: 16001 | B51: 41.12
A52: 16004 | B52: 39.91
A53: 17001 | B53: 44.19
A54: 17004 | B54: 41.73
A55: 18003 | B55: 41.58
A56: 18014 | B56: 39.35
A57: 19001 | B57: 44.41
A58: 19005 | B58: 46.03
A59: 19006 | B59: 42.88
A60: 19007 | B60: 34.09
A61: 19008 | B61: 31.01
A62: 19021 | B62: 32.4
A63: 20001 | B63: 35.37
A64: 20003 | B64: 33.89
A65: 20005 | B65: 32.42
A66: 20006 | B66: 34.06
A67: 20007 | B67: 32.77
A68: 21003 | B68: 37.16
A69: 21006 | B69: 38.34
A70: 21007 | B70: 41.68
A71: 21008 | B71: 42.86
A72: 21012 | B72: 43.58
A73: 21013 | B73: 34.69
A74: 21016 | B74: 30.2
A75: 21017 | B75: 43.7
A76: 21020 | B76: 46.25
A77: 21021 | B77: 38.7
A78: 21024 | B78: 43.99
A79: 21025 | B79: 46.62
A80: 21027 | B80: 36.77
A81: 21030 | B81: 47.73
A82: 21031 | B82: 41.45
A83: 21032 | B83: 50.64
A84: 21034 | B84: 46.92
A85: 21035 | B85: 41.4
A86: 22001 | B86: 42.53
A87: 22006 | B87: 38.61
A88: 22007 | B88: 41.66
A89: 22009 | B89: 45.5
A90: 23001 | B90: 48.19
A91: 23002 | B91: 48.18
A92: 23003 | B92: 50.69
A93: 23004 | B93: 49.22
A94: 23005 | B94: 54.54
A95: 23006 | B95: 52.86
A96: 23007 | B96: 43.82
A97: 23008 | B97: 49.36
A98: 23011 | B98: 55.03
A99: 23017 | B99: 36.02
A100: 23018 | B100: 39.7
A101: 24001 | B101: 43.94
A102: 24003 | B102: 50.81
A103: 24004 | B103: 43.76
A104: 24005 | B104: 39.28
A105: 24006 | B105: 52.02
A106: 24007 | B106: 40.49
A107: 24008 | B107: 46.36
A108: 24009 | B108: 41.84
A109: 25001 | B109: 46.76
A110: 25003 | B110: 59.86
A111: 25004 | B111: 37.1
A112: 25005 | B112: 40.45
A113: 25006 | B113: 55.22
A114: 25008 | B114: 50.43
A115: 25009 | B115: 43.6
A116: 25011 | B116: 58.21
A117: 25012 | B117: 53.45
A118: 25018 | B118: 53.89
A119: 25019 | B119: 38.58
A120: 25020 | B120: 34.77
A121: 25021 | B121: 34.36
A122: 25029 | B122: 40.46
A123: 26003 | B123: 10.43 | C123: 1.76 | D123: 1.897 | E123: 59 | F123: 52 | G123: 0.8813559322 | H123: 0.2485809066 | I123: -0.009318667001 | J123: 0.1918567034 | K123: 0.05076069265 | L123: -0.05076069265 | M123: 0.1941508444 | N123: -0.0267826839 | O123: =(1 - (9 ^ (-1 * N123))) / (1 - (49 ^ -(N123))) -> 0.551737298 | P123: 0.5517320966 | Q123: =(O123)-(P123) -> 5.201431265e-06 | R123: 2.040009751 | S123: 0.9863442964 | T123: =(M123*N123*R123)/(L123+(M123*(1-S123))) -> 0.2204933242 | U123: =(T123*(N123^2)*PI())/(((T123+N123)*SIN(PI()*N123))-T123*N123*PI()) -> 0.2186281967 | V123: =(N123*-1) -> 0.0267826839
A124: 26013 | B124: 17.61 | C124: 2.685 | D124: 2.685 | E124: 10 | F124: 10
A125: 26014 | B125: 6.51 | C125: 0.4305 | D125: 0.622 | E125: 22 | F125: 19 | G125: 0.8636363636 | H125: 0.2979532346 | I125: 0.1203622692 | J125: 0.2481664833 | K125: 0.1247962798 | L125: -0.1247962798 | M125: 0.2547354166 | N125: -0.09929127762 | O125: =(1 - (9 ^ (-1 * N125))) / (1 - (49 ^ -(N125))) -> 0.5168291262 | P125: 0.5168383305 | Q125: =(O125)-(P125) -> -9.204262825e-06 | R125: 1.344376282 | S125: 0.9610375077 | T125: =(M125*N125*R125)/(L125+(M125*(1-S125))) -> 0.2960126636 | U125: =(T125*(N125^2)*PI())/(((T125+N125)*SIN(PI()*N125))-T125*N125*PI()) -> 0.2868411811 | V125: =(N125*-1) -> 0.09929127762
A126: 26016 | B126: 5.67 | C126: 0.101 | D126: 0.105 | E126: 23 | F126: 20 | G126: 0.8695652174 | H126: 0.3119725557 | I126: 0.2584121399 | J126: 0.2652731119 | K126: 0.3310923494 | L126: -0.3310923494 | M126: 0.2548370224 | N126: -0.3134639978 | O126: =(1 - (9 ^ (-1 * N126))) / (1 - (49 ^ -(N126))) -> 0.4152598101 | P126: 0.4150483121 | Q126: =(O126)-(P126) -> 0.0002114980464 | R126: 1.069925555 | S126: 0.9047624246 | T126: =(M126*N126*R126)/(L126+(M126*(1-S126))) -> 0.2785587756 | U126: =(T126*(N126^2)*PI())/(((T126+N126)*SIN(PI()*N126))-T126*N126*PI()) -> 0.2834180532 | V126: =(N126*-1) -> 0.3134639978
A127: 27001 | B127: 39.59
A128: 27002 | B128: 42.75
A129: 27006 | B129: 38.36
A130: 27007 | B130: 43.66
A131: 27008 | B131: 39.89
A132: 27009 | B132: 39.94
A133: 27010 | B133: 50.58
A134: 27021 | B134: 29.91
A135: 27022 | B135: 32.36
A136: 27023 | B136: 25.15
A137: 27026 | B137: 27.91
A138: 27027 | B138: 46.48
A139: 27028 | B139: 38.51
A140: 27029 | B140: 38.53
A141: 27031 | B141: 24.21
A142: 27032 | B142: 57.36
A143: 27034 | B143: 46.93
A144: 27035 | B144: 42.48
A145: 27040 | B145: 32.6
A146: 27041 | B146: 28.21
A147: 27043 | B147: 46.68
A148: 27049 | B148: 29.88
A149: 27050 | B149: 48.72
A150: 27051 | B150: 40.77
A151: 27053 | B151: 45.34
A152: 27055 | B152: 43.18
A153: 27059 | B153: 39.83
A154: 27062 | B154: 39.36
A155: 27071 | B155: 39.86
A156: 27073 | B156: 17.77 | C156: 0.816 | D156: 0.832 | E156: 40 | F156: 38 | G156: 0.95 | H156: 0.2137407781 | I156: 0.02028981807 | J156: 0.1900162975 | K156: 0.06358105246 | L156: -0.06358105246 | M156: 0.1925747005 | N156: -0.05468406337 | O156: =(1 - (9 ^ (-1 * N156))) / (1 - (49 ^ -(N156))) -> 0.5383207581 | P156: 0.5383205831 | Q156: =(O156)-(P156) -> 1.750347077e-07 | R156: 1.193988254 | S156: 0.9933234554 | T156: =(M156*N156*R156)/(L156+(M156*(1-S156))) -> 0.2018387975 | U156: =(T156*(N156^2)*PI())/(((T156+N156)*SIN(PI()*N156))-T156*N156*PI()) -> 0.1992058351 | V156: =(N156*-1) -> 0.05468406337
A157: 27079 | B157: 30.07
A158: 27080 | B158: 37.9
A159: 27081 | B159: 24.4
A160: 27083 | B160: 34.29
A161: 27086 | B161: 40.1
A162: 27087 | B162: 25.95
A163: 27088 | B163: 46.77
A164: 27089 | B164: 40.79
A165: 27090 | B165: 46.29
A166: 27092 | B166: 48.58
A167: 27095 | B167: 20.02
A168: 27096 | B168: 46.46
A169: 27098 | B169: 31.45
A170: 27099 | B170: 28.45
A171: 28003 | B171: 34.21
A172: 28009 | B172: 34.23
A173: 28010 | B173: 26.17
A174: 28015 | B174: 18.92 | C174: 10.172 | D174: 10.3 | E174: 35 | F174: 32 | G174: 0.9142857143 | H174: 0.2070615606 | I174: 0.1262587955 | J174: 0.1843949202 | K174: 0.1537049259 | L174: -0.1537049259 | M174: 0.1858774582 | N174: -0.1396047707 | O174: =(1 - (9 ^ (-1 * N174))) / (1 - (49 ^ -(N174))) -> 0.4974197714 | P174: 0.4974343622 | Q174: =(O174)-(P174) -> -1.459082264e-05 | R174: 1.138873382 | S174: 0.9715091864 | T174: =(M174*N174*R174)/(L174+(M174*(1-S174))) -> 0.1991323507 | U174: =(T174*(N174^2)*PI())/(((T174+N174)*SIN(PI()*N174))-T174*N174*PI()) -> 0.1964722967 | V174: =(N174*-1) -> 0.1396047707
A175: 28018 | B175: 30.17
A176: 28019 | B176: 34.72
A177: 28022 | B177: 34.76
A178: 28023 | B178: 14.32 | C178: 16.5275 | D178: 16.5275 | E178: 56 | F178: 56
A179: 28024 | B179: 41.93
A180: 28026 | B180: 39.46
A181: 28027 | B181: 35.39
A182: 28033 | B182: 42.5
A183: 28039 | B183: 34.91
A184: 28040 | B184: 33.94
A185: 28041 | B185: 47.08
A186: 28043 | B186: 37.49
A187: 28049 | B187: 15.71 | C187: 5.545 | D187: 6.145 | E187: 50 | F187: 42 | G187: 0.84 | H187: 0.3059302325 | I187: 0.1855530535 | J187: 0.251092835 | K187: 0.219096871 | L187: -0.219096871 | M187: 0.2541945646 | N187: -0.1917075791 | O187: =(1 - (9 ^ (-1 * N187))) / (1 - (49 ^ -(N187))) -> 0.4724513109 | P187: 0.472236591 | Q187: =(O187)-(P187) -> 0.0002147198665 | R187: 1.205425491 | S187: 0.9189740054 | T187: =(M187*N187*R187)/(L187+(M187*(1-S187))) -> 0.2959268022 | U187: =(T187*(N187^2)*PI())/(((T187+N187)*SIN(PI()*N187))-T187*N187*PI()) -> 0.2866746031 | V187: =(N187*-1) -> 0.1917075791
A188: 28053 | B188: 36.89
A189: 28056 | B189: 43.22
A190: 28058 | B190: 31.03
A191: 28060 | B191: 24.62
A192: 28061 | B192: 35.2
A193: 28080 | B193: 36.22
A194: 28082 | B194: 39.95
A195: 28085 | B195: 26.16
A196: 28086 | B196: 43.28
A197: 28091 | B197: 17.71 | C197: 11.5 | D197: 11.6 | E197: 32 | F197: 31 | G197: 0.96875 | H197: 0.2703617571 | I197: 0.3403416415 | J197: 0.2609305226 | K197: 0.363474652 | L197: -0.363474652 | M197: 0.2433788446 | N197: -0.3597694243 | O197: =(1 - (9 ^ (-1 * N197))) / (1 - (49 ^ -(N197))) -> 0.3941585464 | P197: 0.3939883452 | Q197: =(O197)-(P197) -> 0.0001702011442 | R197: 1.010660252 | S197: 0.9768148862 | T197: =(M197*N197*R197)/(L197+(M197*(1-S197))) -> 0.2473051868 | U197: =(T197*(N197^2)*PI())/(((T197+N197)*SIN(PI()*N197))-T197*N197*PI()) -> 0.263773036 | V197: =(N197*-1) -> 0.3597694243
A198: 28095 | B198: 35.86
A199: 30003 | B199: 21.91
A200: 30004 | B200: 32.47
... 347 more rows

Sheet AM (hidden)
A1: Station Number | B1: Water Year | C1: Date | D1: Flow | E1: Stage
A49577: 26003 | B49577: =IF(MONTH(C49577)<=9,YEAR(C49577)-1,YEAR(C49577)) -> 1958 | C49577: 1959-07-21 | D49577: REJECTED | E49577: REJECTED
A49578: 26003 | B49578: 1959 | C49578: 1960-02-10 | D49578: 2.38 | E49578: 9
A49579: 26003 | B49579: 1960 | C49579: 1960-12-20 | D49579: 2.86 | E49579: 9
A49580: 26003 | B49580: 1961 | C49580: 1961-12-04 | D49580: 2.09 | E49580: 9
A49581: 26003 | B49581: 1962 | C49581: 1963-03-05 | D49581: 2.09 | E49581: 9
A49582: 26003 | B49582: 1963 | C49582: 1964-03-15 | D49582: 1.42 | E49582: 9
A49583: 26003 | B49583: 1964 | C49583: 1965-09-09 | D49583: 0.54 | E49583: 9
A49584: 26003 | B49584: 1965 | C49584: 1966-02-25 | D49584: 2.77 | E49584: 9
A49585: 26003 | B49585: 1966 | C49585: 1967-05-15 | D49585: 1.76 | E49585: 9
A49586: 26003 | B49586: 1967 | C49586: 1968-01-21 | D49586: 1.02 | E49586: 9
A49587: 26003 | B49587: 1968 | C49587: 1969-01-20 | D49587: 2.91 | E49587: 9
A49588: 26003 | B49588: 1969 | C49588: 1970-02-21 | D49588: 2.38 | E49588: 9
A49589: 26003 | B49589: 1970 | C49589: 1971-02-14 | D49589: REJECTED | E49589: REJECTED
A49590: 26003 | B49590: 1971 | C49590: 1972-04-10 | D49590: 1.25 | E49590: 9
A49591: 26003 | B49591: 1972 | C49591: 1972-12-06 | D49591: 0.37 | E49591: 9
A49592: 26003 | B49592: 1973 | C49592: 1973-11-27 | D49592: 0.835 | E49592: 9
A49593: 26003 | B49593: 1975 | C49593: 1976-01-30 | D49593: 1.274 | E49593: 0.38
A49594: 26003 | B49594: 1976 | C49594: 1977-02-10 | D49594: 2.955 | E49594: 0.639
A49595: 26003 | B49595: 1977 | C49595: 1978-05-06 | D49595: 1.916 | E49595: 0.49
A49596: 26003 | B49596: 1978 | C49596: 1979-03-29 | D49596: 2.542 | E49596: 0.583
A49597: 26003 | B49597: 1979 | C49597: 1980-01-31 | D49597: 2.716 | E49597: 0.607
A49598: 26003 | B49598: 1980 | C49598: 1981-04-26 | D49598: 2.701 | E49598: 0.605
A49599: 26003 | B49599: 1981 | C49599: 1982-01-04 | D49599: 1.237 | E49599: 0.373
A49600: 26003 | B49600: 1982 | C49600: 1983-06-02 | D49600: 1.605 | E49600: 0.439
A49601: 26003 | B49601: 1983 | C49601: 1983-12-09 | D49601: 2.196 | E49601: 0.533
A49602: 26003 | B49602: 1984 | C49602: 1985-01-21 | D49602: 1.694 | E49602: 0.454
A49603: 26003 | B49603: 1985 | C49603: 1986-05-07 | D49603: 1.948 | E49603: 0.495
A49604: 26003 | B49604: 1986 | C49604: 1987-04-07 | D49604: 1.552 | E49604: 0.43
A49605: 26003 | B49605: 1987 | C49605: 1988-03-20 | D49605: 1.797 | E49605: 0.471
A49606: 26003 | B49606: 1988 | C49606: 1988-10-03 | D49606: 0.415 | E49606: 0.184
A49607: 26003 | B49607: 1989 | C49607: 1990-02-08 | D49607: 0.453 | E49607: 0.195
A49608: 26003 | B49608: 1990 | C49608: 1991-03-21 | D49608: 1.269 | E49608: 0.379
A49609: 26003 | B49609: 1991 | C49609: 1992-03-31 | D49609: 0.271 | E49609: 0.139
A49610: 26003 | B49610: 1992 | C49610: 1993-01-13 | D49610: 1.144 | E49610: 0.355
A49611: 26003 | B49611: 1993 | C49611: 1994-02-26 | D49611: 2.686 | E49611: 0.603
A49612: 26003 | B49612: 1994 | C49612: 1995-03-03 | D49612: 1.67 | E49612: 0.45
A49613: 26003 | B49613: 1995 | C49613: 1996-02-12 | D49613: 1.226 | E49613: 0.371
A49614: 26003 | B49614: 1996 | C49614: 1997-07-01 | D49614: 0.915 | E49614: 0.308
A49615: 26003 | B49615: 1997 | C49615: 1998-01-19 | D49615: 1.724 | E49615: 0.459
A49616: 26003 | B49616: 1998 | C49616: 1999-03-26 | D49616: 2.223 | E49616: 0.537
A49617: 26003 | B49617: 1999 | C49617: 2000-06-04 | D49617: 1.712 | E49617: 0.457
A49618: 26003 | B49618: 2000 | C49618: 2001-02-05 | D49618: 2.939 | E49618: 0.637
A49619: 26003 | B49619: 2001 | C49619: 2002-02-26 | D49619: 1.878 | E49619: 0.484
A49620: 26003 | B49620: 2002 | C49620: 2003-01-19 | D49620: 2.782 | E49620: 0.616
A49621: 26003 | B49621: 2003 | C49621: 2004-04-04 | D49621: 1.81 | E49621: 0.473
A49622: 26003 | B49622: 2004 | C49622: 2005-03-28 | D49622: 1.355 | E49622: 0.395
A49623: 26003 | B49623: 2005 | C49623: 2006-05-22 | D49623: 1.546 | E49623: 0.429
A49624: 26003 | B49624: 2006 | C49624: 2007-06-25 | D49624: 2.196 | E49624: 0.533
A49625: 26003 | B49625: 2007 | C49625: 2008-01-21 | D49625: 3.21 | E49625: 0.672
A49626: 26003 | B49626: 2008 | C49626: 2008-12-14 | D49626: 2.018 | E49626: 0.506
A49627: 26003 | B49627: 2009 | C49627: 2010-02-26 | D49627: 2.554 | E49627: 0.585
A49628: 26003 | B49628: 2010 | C49628: 2011-02-06 | D49628: 1.583 | E49628: 0.435
A49629: 26003 | B49629: 2011 | C49629: 2012-07-06 | D49629: 1.333 | E49629: 0.391
A49630: 26003 | B49630: 2012 | C49630: 2012-12-21 | D49630: 3.249 | E49630: 0.677
A49631: 26003 | B49631: 2013 | C49631: 2014-07-06 | D49631: 1.083 | E49631: 0.343
A49632: 26003 | B49632: 2014 | C49632: 2015-02-05 | D49632: 1.108 | E49632: 0.348
A49633: 26003 | B49633: 2015 | C49633: 2016-03-09 | D49633: 2.366 | E49633: 0.558
A49634: 26003 | B49634: 2016 | C49634: 2017-03-08 | D49634: 0.872 | E49634: 0.299
A49635: 26003 | B49635: 2017 | C49635: 2018-04-02 | D49635: 2.65 | E49635: 0.598
A49636: 26003 | B49636: 2018 | C49636: 2019-03-07 | D49636: 1 | E49636: 0.326
A49637: 26003 | B49637: 2019 | C49637: 2020-02-16 | D49637: 2.686 | E49637: 0.603
A49638: 26013 | B49638: 2009 | C49638: 2010-07-27 | D49638: REJECTED | E49638: REJECTED
A49639: 26013 | B49639: 2010 | C49639: 2011-01-19 | D49639: 2.7 | E49639: 0.533
A49640: 26013 | B49640: 2011 | C49640: 2012-05-11 | D49640: 2.67 | E49640: 0.578
A49641: 26013 | B49641: =IF(MONTH(C49641)<=9,YEAR(C49641)-1,YEAR(C49641)) -> 2012 | C49641: 2012-12-27 | D49641: 6.83 | E49641: 0.905
A49642: 26013 | B49642: 2013 | C49642: 2014-02-24 | D49642: 2.65 | E49642: 0.418
A49643: 26013 | B49643: 2014 | C49643: 2014-12-11 | D49643: 1.807 | E49643: 0.419
A49644: 26013 | B49644: 2015 | C49644: 2016-01-14 | D49644: 6.53 | E49644: 0.609
A49645: 26013 | B49645: 2016 | C49645: 2017-03-04 | D49645: 2.266 | E49645: 0.361
A49646: 26013 | B49646: 2017 | C49646: 2018-04-02 | D49646: 5.134 | E49646: 0.616
A49647: 26013 | B49647: 2018 | C49647: 2019-03-06 | D49647: 1.941 | E49647: 0.383
A49648: 26013 | B49648: 2019 | C49648: 2019-11-23 | D49648: 4.555 | E49648: 0.581
A49649: 26014 | B49649: 1997 | C49649: 1998-01-30 | D49649: REJECTED | E49649: REJECTED
A49650: 26014 | B49650: 1998 | C49650: 1999-03-28 | D49650: 0.398 | E49650: 0.279
A49651: 26014 | B49651: 1999 | C49651: 2000-05-29 | D49651: 0.289 | E49651: 0.255
A49652: 26014 | B49652: 2000 | C49652: 2000-11-15 | D49652: 0.747 | E49652: 0.336
A49653: 26014 | B49653: 2001 | C49653: 2002-02-26 | D49653: 0.424 | E49653: 0.284
A49654: 26014 | B49654: 2002 | C49654: 2003-01-19 | D49654: 0.629 | E49654: 0.319
A49655: 26014 | B49655: 2003 | C49655: 2004-02-24 | D49655: 0.437 | E49655: 0.287
A49656: 26014 | B49656: 2004 | C49656: 2005-03-27 | D49656: 0.155 | E49656: 0.216
A49657: 26014 | B49657: 2005 | C49657: 2006-06-12 | D49657: 0.622 | E49657: 0.318
A49658: 26014 | B49658: 2006 | C49658: 2007-06-25 | D49658: 0.936 | E49658: 0.36
A49659: 26014 | B49659: 2007 | C49659: 2008-01-31 | D49659: 0.854 | E49659: 0.35
A49660: 26014 | B49660: 2008 | C49660: 2009-03-08 | D49660: 0.31 | E49660: 0.26
A49661: 26014 | B49661: 2009 | C49661: 2010-01-30 | D49661: 0.884 | E49661: 0.354
A49662: 26014 | B49662: 2010 | C49662: 2011-01-24 | D49662: 0.348 | E49662: 0.269
A49663: 26014 | B49663: 2011 | C49663: 2012-08-30 | D49663: 0.374 | E49663: 0.274
A49664: 26014 | B49664: 2012 | C49664: 2012-12-31 | D49664: 1.067 | E49664: 0.375
A49665: 26014 | B49665: 2013 | C49665: 2014-03-02 | D49665: 0.388 | E49665: 0.277
A49666: 26014 | B49666: 2014 | C49666: 2015-07-04 | D49666: 0.161 | E49666: 0.218
A49667: 26014 | B49667: 2015 | C49667: 2016-01-16 | D49667: 0.697 | E49667: 0.329
A49668: 26014 | B49668: 2016 | C49668: 2017-02-27 | D49668: 0.211 | E49668: 0.234
A49669: 26014 | B49669: 2017 | C49669: 2018-04-15 | D49669: 0.623 | E49669: 0.318
A49670: 26014 | B49670: 2018 | C49670: 2019-03-06 | D49670: 0.218 | E49670: 0.236
A49671: 26014 | B49671: 2019 | C49671: 2019-11-28 | D49671: 0.663 | E49671: 0.324
A49672: 26016 | B49672: 1997 | C49672: 1998-04-11 | D49672: 0.088 | E49672: 0.142
A49673: 26016 | B49673: 1998 | C49673: 1999-03-06 | D49673: 0.094 | E49673: 0.148
A49674: 26016 | B49674: 1999 | C49674: 2000-06-06 | D49674: 0.114 | E49674: 0.166
A49675: 26016 | B49675: 2000 | C49675: 2000-11-06 | D49675: 0.255 | E49675: 0.272
A49676: 26016 | B49676: 2001 | C49676: 2002-02-26 | D49676: 0.101 | E49676: 0.154
A49677: 26016 | B49677: 2002 | C49677: 2003-01-01 | D49677: 0.153 | E49677: 0.199
A49678: 26016 | B49678: 2003 | C49678: 2004-04-19 | D49678: 0.092 | E49678: 0.146
A49679: 26016 | B49679: 2004 | C49679: 2005-02-26 | D49679: 0.065 | E49679: 0.118
A49680: 26016 | B49680: 2005 | C49680: 2006-05-22 | D49680: 0.104 | E49680: 0.157
A49681: 26016 | B49681: 2006 | C49681: 2007-03-04 | D49681: 0.066 | E49681: 0.119
A49682: 26016 | B49682: 2007 | C49682: 2008-01-21 | D49682: 0.137 | E49682: 0.186
A49683: 26016 | B49683: 2008 | C49683: 2009-03-03 | D49683: 0.073 | E49683: 0.126
A49684: 26016 | B49684: 2009 | C49684: 2010-01-16 | D49684: 0.136 | E49684: 0.185
A49685: 26016 | B49685: 2010 | C49685: 2011-02-19 | D49685: 0.044 | E49685: 0.093
A49686: 26016 | B49686: 2011 | C49686: 2012-08-05 | D49686: 0.106 | E49686: 0.159
A49687: 26016 | B49687: 2012 | C49687: 2012-11-25 | D49687: 0.285 | E49687: 0.291
A49688: 26016 | B49688: 2013 | C49688: 2014-02-15 | D49688: 0.098 | E49688: 0.152
A49689: 26016 | B49689: 2014 | C49689: 2015-05-03 | D49689: 0.056 | E49689: 0.107
A49690: 26016 | B49690: 2015 | C49690: 2015-12-26 | D49690: 0.209 | E49690: 0.241
A49691: 26016 | B49691: 2016 | C49691: 2017-02-23 | D49691: 0.035 | E49691: 0.081
A49692: 26016 | B49692: 2017 | C49692: 2018-04-02 | D49692: 0.19 | E49692: 0.227
A49693: 26016 | B49693: 2018 | C49693: 2019-03-06 | D49693: 0.033 | E49693: 0.077
A49694: 26016 | B49694: 2019 | C49694: 2020-02-16 | D49694: 0.116 | E49694: 0.168
A49695: 27073 | B49695: 1980 | C49695: 1981-03-28 | D49695: 1.052 | E49695: 0.196
A49696: 27073 | B49696: 1981 | C49696: 1982-01-08 | D49696: 1.167 | E49696: 0.209
A49697: 27073 | B49697: 1982 | C49697: 1983-05-07 | D49697: 0.655 | E49697: 0.146
A49698: 27073 | B49698: 1983 | C49698: 1984-02-01 | D49698: 1.096 | E49698: 0.201
A49699: 27073 | B49699: 1984 | C49699: 1985-01-25 | D49699: 0.627 | E49699: 0.142
A49700: 27073 | B49700: 1985 | C49700: 1986-02-05 | D49700: 0.917 | E49700: 0.18
A49701: 27073 | B49701: 1986 | C49701: 1987-04-11 | D49701: 0.699 | E49701: 0.152
A49702: 27073 | B49702: 1987 | C49702: 1988-03-24 | D49702: 0.812 | E49702: 0.167
A49703: 27073 | B49703: 1988 | C49703: 1988-12-10 | D49703: 0.198 | E49703: 0.068
A49704: 27073 | B49704: 1989 | C49704: 1990-02-12 | D49704: 0.301 | E49704: 0.089
A49705: 27073 | B49705: =IF(MONTH(C49705)<=9,YEAR(C49705)-1,YEAR(C49705)) -> 1990 | C49705: 1990-12-12 | D49705: 0.751 | E49705: 0.159
A49706: 27073 | B49706: 1991 | C49706: 1992-04-24 | D49706: 0.419 | E49706: 0.11
A49707: 27073 | B49707: 1992 | C49707: 1992-12-13 | D49707: 0.538 | E49707: 0.129
A49708: 27073 | B49708: 1993 | C49708: 1994-01-12 | D49708: 0.992 | E49708: 0.189
A49709: 27073 | B49709: 1994 | C49709: 1995-01-31 | D49709: 0.728 | E49709: 0.156
A49710: 27073 | B49710: 1995 | C49710: 1996-02-16 | D49710: 0.558 | E49710: 0.132
A49711: 27073 | B49711: 1996 | C49711: 1996-12-23 | D49711: 0.565 | E49711: 0.133
A49712: 27073 | B49712: 1997 | C49712: 1998-04-15 | D49712: 0.95 | E49712: 0.184
A49713: 27073 | B49713: 1998 | C49713: 1999-03-10 | D49713: 1.326 | E49713: 0.226
A49714: 27073 | B49714: 1999 | C49714: 2000-04-19 | D49714: 0.736 | E49714: 0.157
A49715: 27073 | B49715: 2000 | C49715: 2001-02-08 | D49715: 0.844 | E49715: 0.171
A49716: 27073 | B49716: 2001 | C49716: 2002-03-02 | D49716: 0.684 | E49716: 0.15
A49717: 27073 | B49717: 2002 | C49717: 2003-01-05 | D49717: 1.069 | E49717: 0.198
A49718: 27073 | B49718: 2003 | C49718: 2004-02-03 | D49718: 1.271 | E49718: 0.22
A49719: 27073 | B49719: 2004 | C49719: 2005-03-04 | D49719: 0.72 | E49719: 0.155
A49720: 27073 | B49720: 2005 | C49720: 2006-04-06 | D49720: 0.648 | E49720: 0.145
A49721: 27073 | B49721: 2006 | C49721: 2007-07-06 | D49721: 1.159 | E49721: 0.208
A49722: 27073 | B49722: 2007 | C49722: 2008-01-24 | D49722: 1.269 | E49722: 0.22
A49723: 27073 | B49723: 2008 | C49723: 2008-12-16 | D49723: 0.868 | E49723: 0.174
A49724: 27073 | B49724: 2009 | C49724: 2010-03-01 | D49724: 1.105 | E49724: 0.202
A49725: 27073 | B49725: 2010 | C49725: 2010-12-18 | D49725: 1.124 | E49725: 0.204
A49726: 27073 | B49726: 2011 | C49726: 2012-05-03 | D49726: 0.82 | E49726: 0.168
A49727: 27073 | B49727: 2012 | C49727: 2012-11-30 | D49727: 1.482 | E49727: 0.242
A49728: 27073 | B49728: 2013 | C49728: 2014-02-12 | D49728: 0.475 | E49728: 0.119
A49729: 27073 | B49729: 2014 | C49729: 2014-11-26 | D49729: 0.453 | E49729: 0.116
A49730: 27073 | B49730: 2015 | C49730: 2016-01-09 | D49730: 1.316 | E49730: 0.225
A49731: 27073 | B49731: 2016 | C49731: 2017-02-20 | D49731: 0.496 | E49731: 0.123
A49732: 27073 | B49732: 2017 | C49732: 2018-04-10 | D49732: 1.011 | E49732: 0.191
A49733: 27073 | B49733: 2018 | C49733: 2019-02-11 | D49733: 0.568 | E49733: 0.133
A49734: 27073 | B49734: 2019 | C49734: 2019-11-18 | D49734: 1.164 | E49734: 0.209
A49735: 28015 | B49735: 1982 | C49735: 1983-06-02 | D49735: REJECTED | E49735: REJECTED
A49736: 28015 | B49736: 1983 | C49736: 1984-02-07 | D49736: 17.492 | E49736: 1.934
A49737: 28015 | B49737: 1984 | C49737: 1984-11-24 | D49737: REJECTED | E49737: REJECTED
A49738: 28015 | B49738: 1985 | C49738: 1986-08-27 | D49738: REJECTED | E49738: REJECTED
A49739: 28015 | B49739: 1986 | C49739: 1987-04-08 | D49739: 13.7 | E49739: 9
A49740: 28015 | B49740: 1987 | C49740: 1987-10-21 | D49740: 10.5 | E49740: 9
A49741: 28015 | B49741: 1988 | C49741: 1989-04-07 | D49741: 9.5 | E49741: 9
A49742: 28015 | B49742: 1989 | C49742: 1990-02-08 | D49742: 12.5 | E49742: 9
A49743: 28015 | B49743: 1990 | C49743: 1991-01-10 | D49743: 10.4 | E49743: 1.909
A49744: 28015 | B49744: 1991 | C49744: 1992-09-27 | D49744: 4.88 | E49744: 1.475
A49745: 28015 | B49745: 1992 | C49745: 1992-12-07 | D49745: 8.45 | E49745: 1.838
A49746: 28015 | B49746: 1993 | C49746: 1993-10-13 | D49746: 11.3 | E49746: 2.395
A49747: 28015 | B49747: 1994 | C49747: 1995-01-26 | D49747: 15.9 | E49747: 2.645
A49748: 28015 | B49748: 1995 | C49748: 1996-02-13 | D49748: 5.96 | E49748: 1.52
A49749: 28015 | B49749: 1996 | C49749: 1996-12-21 | D49749: 8 | E49749: 2
A49750: 28015 | B49750: 1997 | C49750: 1998-04-11 | D49750: 8.94 | E49750: 2.092
A49751: 28015 | B49751: 1998 | C49751: 1999-03-10 | D49751: 9.49 | E49751: 2.128
A49752: 28015 | B49752: 1999 | C49752: 2000-04-04 | D49752: 9.52 | E49752: 2.136
A49753: 28015 | B49753: 2000 | C49753: 2000-11-08 | D49753: 17.8 | E49753: 2.799
A49754: 28015 | B49754: 2001 | C49754: 2001-10-28 | D49754: 8.75 | E49754: 2.197
A49755: 28015 | B49755: 2002 | C49755: 2002-12-30 | D49755: 11.9 | E49755: 2.372
A49756: 28015 | B49756: 2003 | C49756: 2004-08-12 | D49756: 6.89 | E49756: 2.077
A49757: 28015 | B49757: 2004 | C49757: 2004-10-22 | D49757: 6.46 | E49757: 1.808
A49758: 28015 | B49758: 2005 | C49758: 2006-05-23 | D49758: 4.98 | E49758: 1.434
A49759: 28015 | B49759: 2006 | C49759: 2007-06-26 | D49759: 20.1 | E49759: 2.807
A49760: 28015 | B49760: 2007 | C49760: 2008-01-16 | D49760: 13.7 | E49760: 2.457
A49761: 28015 | B49761: 2008 | C49761: 2009-02-11 | D49761: 7.69 | E49761: 1.972
A49762: 28015 | B49762: 2009 | C49762: 2010-01-17 | D49762: 10.5 | E49762: 2.33
A49763: 28015 | B49763: 2010 | C49763: 2011-02-27 | D49763: 5.81 | E49763: 1.736
A49764: 28015 | B49764: 2011 | C49764: 2012-04-30 | D49764: 10.2 | E49764: 2.429
A49765: 28015 | B49765: 2012 | C49765: 2012-12-23 | D49765: 14.1 | E49765: 2.477
A49766: 28015 | B49766: 2013 | C49766: 2014-02-13 | D49766: 9.28 | E49766: 2.241
A49767: 28015 | B49767: 2014 | C49767: 2015-01-02 | D49767: 5.01 | E49767: 1.689
A49768: 28015 | B49768: 2015 | C49768: 2016-01-08 | D49768: 12.5 | E49768: 2.001
A49769: 28015 | B49769: =IF(MONTH(C49769)<=9,YEAR(C49769)-1,YEAR(C49769)) -> 2016 | C49769: 2016-11-23 | D49769: 10.172 | E49769: 2.043
A49770: 28015 | B49770: 2017 | C49770: 2018-04-02 | D49770: 11.722 | E49770: 2.4
A49771: 28015 | B49771: 2018 | C49771: 2019-06-14 | D49771: 5.4 | E49771: 1.941
A49772: 28015 | B49772: 2019 | C49772: 2019-11-09 | D49772: 11.564 | E49772: 2.613
A49773: 28023 | B49773: 1964 | C49773: 1965-09-08 | D49773: 15.7 | E49773: 1.537
A49774: 28023 | B49774: 1965 | C49774: 1965-12-09 | D49774: 37.8 | E49774: 2.152
A49775: 28023 | B49775: 1966 | C49775: 1966-12-02 | D49775: 15.6 | E49775: 1.528
... 1934 more rows
